bitfinex/quotes_SOLUSD_20241001
["timestamp","ask_amount","ask_price","bid_price","bid_amount"]
[1727801865520,0.846113,148.89,148.75,33.6115]
[1727801865521,6.7174,148.87,148.8,16.8003]
[1727801865733,0.846113,148.89,148.84,23.776884]
[1727801865952,7.562413,148.89,148.84,30.495484]
[1727801866251,7.562413,148.89,148.84,6.7186]
[1727801866544,0.846113,148.89,148.85,6.7181]
[1727801867237,6.7172,148.88,148.83,16.7976]
[1727801867437,0.846113,148.89,148.83,16.7976]
[1727801867637,6.7168,148.88,148.83,16.7976]
[1727801867835,6.7194,148.83,148.77,6.7217]
[1727801868143,6.7195,148.82,148.77,23.5259]
[1727801868646,6.7206,148.8,148.75,6.7223]
[1727801868851,6.7206,148.8,148.74,16.8075]
[1727801868852,15.3565,148.87,148.74,16.8075]
[1727801869022,6.7209,148.79,148.74,16.8075]
[1727801869230,0.846113,148.89,148.84,6.7185]
[1727801869535,0.846113,148.89,148.85,1.34323002]
[1727801869727,0.846113,148.89,148.88,6.7168]
[1727801870126,0.846113,148.89,148.88,30.493684]
[1727801870329,0.846113,148.89,148.87,6.7172]
[1727801870938,0.846113,148.89,148.88,6.7168]
[1727801871133,0.846113,148.89,148.88,31.83666658]
[1727801871929,0.846113,148.89,148.88,30.493684]
[1727801872430,0.846113,148.89,148.88,31.83619865]
[1727801872631,0.846113,148.89,148.88,30.493684]
[1727801873052,0.846113,148.89,148.88,6.7168]
[1727801873253,0.846113,148.89,148.86,16.7934]
[1727801873856,0.846113,148.89,148.88,6.7168]
[1727801874946,0.846113,148.89,148.88,30.493684]
[1727801876147,0.846113,148.89,148.88,6.7168]
[1727801877432,0.846113,148.89,148.88,31.8363045]
[1727801877851,0.846113,148.89,148.88,30.493684]
[1727801878036,6.4658,149.01,148.97,23.4939]
[1727801878443,7.555813,149.04,148.97,16.7815]
[1727801878650,0.846113,149.04,148.97,16.7815]
[1727801878857,6.7109,149.01,148.96,6.7131]
[1727801879144,6.7117,149.0,148.95,6.7136]
[1727801879353,6.7109,149.01,148.96,6.7129]
[1727801879653,0.846113,149.04,148.94,16.7848]
[1727801879853,6.7114,149.0,148.95,6.7136]
[1727801880052,6.7114,149.0,148.94,16.7848]
[1727801880053,20.0,149.03,148.94,16.7848]
[1727801880264,6.7122,148.99,148.94,6.714]
[1727801880552,16.7771,149.02,148.9,16.7895]
[1727801880760,20.0,149.01,148.9,16.7895]
[1727801880933,6.7136,148.96,148.91,6.7154]
[1727801881351,0.846113,149.04,148.93,16.7853]
[1727801881536,6.7119,148.99,148.94,6.7139]
[1727801881740,6.7123,148.98,148.93,23.4998]
[1727801882749,0.846113,149.04,148.95,16.7831]
[1727801883362,6.7114,149.0,148.95,23.4966]
[1727801883661,0.846113,149.04,148.92,16.787]
[1727801883858,6.7131,148.97,148.92,23.5015]
[1727801884160,6.7124,148.98,148.93,6.7144]
[1727801884342,0.846113,149.04,148.95,16.7835]
[1727801885165,6.7118,148.99,148.95,16.7835]
[1727801885338,6.7114,149.0,148.95,16.7835]
[1727801885539,0.846113,149.04,148.95,23.4971]
[1727801885736,6.7119,148.99,148.95,16.7835]
[1727801886372,6.7115,149.0,148.95,23.4967]
[1727801886544,6.7119,148.99,148.95,16.7835]
[1727801886862,6.7117,149.0,148.95,23.497]
[1727801887542,6.711,149.01,148.96,6.713]
[1727801887760,6.711,149.01,148.97,6.7126]
[1727801888060,6.7109,149.01,148.96,6.713]
[1727801888262,6.7118,148.99,148.95,16.7835]
[1727801888467,6.7118,148.99,148.95,23.497]
[1727801888764,6.7118,148.99,148.95,16.7835]
[1727801889056,16.7757,149.03,148.92,16.787]
[1727801889358,16.7757,149.03,148.94,16.7847]
[1727801889668,0.846113,149.04,148.9,23.5049]
[1727801889669,6.7137,148.95,148.9,23.5049]
[1727801889961,0.846113,149.04,148.84,46.53750531]
[1727801889962,17.620413,149.04,148.94,23.4988]
[1727801890163,6.7122,148.99,148.95,6.7134]
[1727801890363,6.7129,148.97,148.93,6.7144]
[1727801890566,0.846113,149.04,148.87,33.5849]
[1727801890861,53.5529,149.02,148.84,33.5928]
[1727801891049,53.5529,149.02,148.89,6.7163]
[1727801891050,6.7146,148.93,148.89,6.7163]
[1727801891242,53.5529,149.02,148.91,6.7153]
[1727801891243,16.7806,148.99,148.91,6.7153]
[1727801891443,16.7806,148.99,148.84,33.5928]
[1727801891444,6.7129,148.97,148.84,33.5928]
[1727801891645,6.7137,148.95,148.91,16.7876]
[1727801891845,20.0,149.01,148.88,16.7915]
[1727801892063,6.7146,148.93,148.88,23.5082]
[1727801892238,6.7151,148.92,148.88,16.7915]
[1727801892440,6.7159,148.9,148.85,23.5129]
[1727801892862,16.7859,148.94,148.83,6.7187]
[1727801893063,6.7164,148.89,148.84,6.7182]
[1727801893252,6.7182,148.85,148.8,6.72]
[1727801893457,6.7187,148.84,148.79,23.522]
[1727801893764,20.0,148.9,148.76,16.8051]
[1727801893942,16.7953,148.86,148.76,16.8051]
[1727801894143,6.72,148.81,148.76,6.722]
[1727801894338,6.5942,148.85,148.75,16.8057]
[1727801894537,6.5942,148.85,148.71,46.17408674]
[1727801894737,6.7191,148.83,148.78,16.8033]
[1727801894957,6.7197,148.82,148.78,16.8033]
[1727801895357,6.5942,148.85,148.75,16.8066]
[1727801895566,6.5942,148.85,148.68,52.77508674]
[1727801895863,6.5942,148.85,148.73,6.7234]
[1727801895864,6.7213,148.78,148.73,6.7234]
[1727801896565,16.8009,148.81,148.71,16.8103]
[1727801896861,16.8009,148.81,148.69,6.7253]
[1727801896862,6.7231,148.74,148.69,6.7253]
[1727801897247,6.7236,148.73,148.68,16.8145]
[1727801897444,6.7227,148.75,148.69,1.3448288]
[1727801897665,16.7988,148.82,148.71,16.8112]
[1727801897873,35.59,148.86,148.65,7.03591232]
[1727801898165,6.7231,148.75,148.69,6.7253]
[1727801898463,16.8021,148.8,148.69,6.7253]
[1727801898652,16.8021,148.8,148.68,18.15935061]
[1727801898653,6.724,148.72,148.68,16.8146]
[1727801898854,6.7239,148.73,148.68,16.8146]
[1727801899248,6.7239,148.73,148.68,23.5402]
[1727801899448,16.8044,148.78,148.66,6.7264]
[1727801899659,20.0,148.77,148.66,6.7264]
[1727801899861,6.7259,148.68,148.62,16.8211]
[1727801900075,6.7259,148.68,148.62,23.5496]
[1727801900266,6.7259,148.68,148.63,8.0731084]
[1727801900567,6.7259,148.68,148.63,6.7279]
[1727801900951,6.726,148.68,148.62,23.5492]
[1727801901152,16.8099,148.73,148.62,16.8211]
[1727801901458,6.7264,148.67,148.62,23.5496]
[1727801902167,6.7258,148.68,148.62,23.5496]
[1727801902474,6.7258,148.68,148.62,16.8211]
[1727801902652,6.7258,148.68,148.63,6.7278]
[1727801903058,6.727,148.66,148.61,6.7289]
[1727801903658,6.7272,148.65,148.6,6.7294]
[1727801903856,6.7267,148.66,148.59,16.8246]
[1727801904069,6.7267,148.66,148.6,6.7294]
[1727801904275,15.7789,148.72,148.61,18.16708816]
[1727801904462,6.7254,148.69,148.64,6.7276]
[1727801904658,6.7254,148.69,148.65,1.34529595]
[1727801904854,15.7789,148.72,148.65,1.34529595]
[1727801905169,6.725,148.7,148.65,16.8169]
[1727801905366,6.3991,148.73,148.65,16.8169]
[1727801905367,6.7254,148.69,148.65,16.8169]
[1727801905846,6.3991,148.73,148.65,18.16207417]
[1727801906048,6.3991,148.73,148.65,16.8169]
[1727801906475,6.7249,148.7,148.65,23.544]
[1727801906860,6.7263,148.67,148.62,6.7285]
[1727801907182,6.7258,148.68,148.63,6.728]
[1727801907374,6.7254,148.69,148.63,6.728]
[1727801907548,16.8101,148.72,148.61,16.8216]
[1727801907744,6.726,148.68,148.61,16.8216]
[1727801908176,6.7269,148.66,148.61,23.5502]
[1727801908549,6.7263,148.67,148.62,6.7284]
[1727801908751,23.776884,148.72,148.61,16.8216]
[1727801908957,6.7273,148.65,148.61,16.8216]
[1727801909160,6.7276,148.64,148.59,6.7298]
[1727801909875,23.776884,148.72,148.55,23.5606]
[1727801909876,6.7298,148.6,148.55,23.5606]
[1727801910168,6.7281,148.63,148.56,1.34601202]
[1727801910377,6.7281,148.63,148.58,6.7301]
[1727801910946,6.7277,148.64,148.59,8.07562313]
[1727801911150,15.2445,148.66,148.6,6.7294]
[1727801911350,6.7268,148.66,148.61,8.07459907]
[1727801911755,15.848,148.72,148.61,16.8217]
[1727801911962,6.7246,148.71,148.66,6.7265]
[1727801912275,6.3991,148.73,148.6,33.6465]
[1727801912480,6.3991,148.73,148.59,23.776884]
[1727801912773,6.7258,148.69,148.6,1.34533758]
[1727801912967,6.7258,148.69,148.64,6.7272]
[1727801913161,6.3991,148.73,148.62,16.8205]
[1727801914059,6.725,148.7,148.65,6.7271]
[1727801914261,6.7245,148.71,148.66,8.07147301]
[1727801914468,6.3991,148.73,148.64,23.5454]
[1727801914469,6.7249,148.7,148.64,23.5454]
[1727801914664,6.3991,148.73,148.61,16.8223]
[1727801914665,16.8114,148.71,148.61,16.8223]
[1727801914881,6.7273,148.65,148.61,16.8223]
[1727801915673,6.7276,148.64,148.6,6.729]
[1727801916190,6.7282,148.63,148.58,23.5554]
[1727801916357,53.8383,148.69,148.55,16.8289]
[1727801916558,16.8188,148.65,148.56,1.34614022]
[1727801916755,6.7277,148.64,148.59,6.7296]
[1727801917161,6.7286,148.62,148.57,23.5565]
[1727801917360,6.7281,148.63,148.58,6.7303]
[1727801917781,6.7281,148.63,148.57,16.8261]
[1727801917782,6.7296,148.6,148.55,6.7317]
[1727801918019,16.8177,148.66,148.58,6.7303]
[1727801918176,16.8177,148.66,148.57,6.7307]
[1727801918363,60.080284,148.72,148.61,6.729]
[1727801918364,16.8122,148.71,148.61,6.729]
[1727801918558,6.7271,148.66,148.62,1.34565009]
[1727801918761,6.7272,148.65,148.6,6.7293]
[1727801918961,20.0,148.7,148.59,16.8241]
[1727801919174,16.8122,148.71,148.6,1.34557184]
[1727801919480,16.0934,148.72,148.59,16.8241]
[1727801919481,16.0934,148.72,148.59,33.649]
[1727801919781,16.0934,148.72,148.67,16.8148]
[1727801919957,6.7256,148.69,148.64,16.819]
[1727801920165,16.0934,148.72,148.61,1.34510341]
[1727801920497,6.7255,148.69,148.63,16.8195]
[1727801920787,16.0934,148.72,148.63,23.5475]
[1727801920788,6.7262,148.68,148.63,23.5475]
[1727801920958,16.0934,148.72,148.63,16.8195]
[1727801921156,6.7271,148.66,148.61,6.7289]
[1727801921355,16.8121,148.71,148.6,16.8232]
[1727801921773,6.7278,148.64,148.59,6.7298]
[1727801922283,20.0,148.68,148.6,6.7294]
[1727801922485,6.7272,148.65,148.6,6.7294]
[1727801922664,20.0,148.68,148.58,1.3456452]
[1727801923004,6.7245,148.71,148.66,6.7266]
[1727801923191,16.0934,148.72,148.68,6.7254]
[1727801923363,6.3991,148.73,148.69,1.34501843]
[1727801923562,16.0875,148.78,148.69,16.8125]
[1727801923784,16.0875,148.78,148.6,23.776884]
[1727801923785,16.0875,148.78,148.7,1.34480205]
[1727801924080,16.0875,148.78,148.71,16.8104]
[1727801924282,6.7218,148.77,148.71,16.8104]
[1727801924489,16.0875,148.78,148.71,16.8104]
[1727801924858,6.7218,148.77,148.72,6.7239]
[1727801925060,6.1341,148.79,148.73,18.15280251]
[1727801925273,6.1341,148.79,148.73,16.8082]
[1727801925475,6.7222,148.76,148.71,6.7244]
[1727801925678,49.0578,148.85,148.73,23.776884]
[1727801925679,6.2458,148.84,148.73,23.776884]
[1727801925885,6.2458,148.84,148.75,6.7226]
[1727801925886,6.7199,148.81,148.75,6.7226]
[1727801926092,6.7199,148.81,148.76,16.8046]
[1727801926473,6.2458,148.84,148.8,6.7202]
[1727801926664,6.0962,148.9,148.8,1.34395129]
[1727801926867,6.0962,148.9,148.82,16.7985]
[1727801927086,15.466,148.92,148.87,6.7169]
[1727801927289,22.1811,148.92,148.85,23.5124]
[1727801927472,15.466,148.92,148.86,1.34347109]
[1727801927666,15.466,148.92,148.78,23.776884]
[1727801927867,6.7159,148.9,148.84,16.59222468]
[1727801928067,15.466,148.92,148.8,23.5205]
[1727801928266,20.0,148.91,148.8,16.8004]
[1727801928468,6.7181,148.85,148.73,46.27589732]
[1727801928688,6.7186,148.84,148.78,6.7212]
[1727801928881,20.0,148.91,148.76,16.8049]
[1727801929093,20.0,148.91,148.69,6.594]
[1727801929094,20.0,148.88,148.69,6.594]
[1727801929299,6.7195,148.83,148.76,6.7221]
[1727801929590,6.3924,148.84,148.72,16.8096]
[1727801929895,6.3924,148.84,148.74,6.7228]
[1727801930190,6.3924,148.84,148.74,33.6152]
[1727801930498,6.7178,148.86,148.8,6.7203]
[1727801930792,26.3924,148.89,148.78,16.8028]
[1727801931099,16.7934,148.87,148.74,16.8073]
[1727801931472,6.7199,148.82,148.77,16.8041]
[1727801931776,20.0,148.86,148.77,16.8041]
[1727801931777,6.7191,148.83,148.77,24.86952446]
[1727801931975,6.7195,148.82,148.77,16.8041]
[1727801932173,6.7201,148.81,148.75,6.7225]
[1727801932497,6.7201,148.81,148.73,16.808]
[1727801932681,20.0,148.87,148.73,16.808]
[1727801932884,6.7204,148.8,148.75,6.7226]
[1727801933190,20.0,148.84,148.73,16.808]
[1727801933367,20.0,148.84,148.74,1.34440341]
[1727801933569,33.5879,148.87,148.69,33.6268]
[1727801933570,20.0,148.81,148.69,16.8125]
[1727801933770,35.8668,148.81,148.65,46.27589732]
[1727801933995,35.8668,148.81,148.71,16.8101]
[1727801934167,6.7186,148.84,148.78,6.7213]
[1727801934370,6.719,148.84,148.78,8.06539543]
[1727801934671,6.7181,148.85,148.77,16.8044]
[1727801934888,15.8668,148.87,148.83,6.719]
[1727801935097,6.3924,148.89,148.83,16.7975]
[1727801935372,6.7172,148.88,148.83,23.5165]
[1727801935576,13.1087,148.89,148.83,23.5164]
[1727801935804,6.3924,148.89,148.84,1.34348301]
[1727801935974,6.3924,148.89,148.84,6.7185]
[1727801936171,13.1088,148.89,148.82,16.7987]
[1727801936379,6.3924,148.89,148.85,6.7181]
[1727801936591,6.3924,148.89,148.83,23.776884]
[1727801936889,6.3924,148.89,148.82,23.5181]
[1727801937273,6.3924,148.89,148.85,16.7951]
[1727801937474,6.7155,148.91,148.85,16.7951]
[1727801937674,6.7155,148.91,148.85,23.513]
[1727801938082,6.7159,148.9,148.85,16.7951]
[1727801938491,6.7163,148.89,148.83,6.719]
[1727801938702,15.9745,148.93,148.87,16.7929]
[1727801938873,15.9745,148.93,148.88,1.34311941]
[1727801939076,6.301,148.94,148.89,1.34311941]
[1727801939279,16.2076,148.99,148.9,16.789]
[1727801939489,6.7132,148.96,148.91,1.34277885]
[1727801940174,6.7141,148.95,148.9,16.789]
[1727801940372,16.2076,148.99,148.9,16.789]
[1727801940575,22.9194,148.99,148.93,6.7145]
[1727801940879,6.2126,149.0,148.93,16.7861]
[1727801941090,22.123137,149.05,148.94,1.34237152]
[1727801941292,15.0976,149.05,148.93,16.7861]
[1727801941503,6.7124,148.98,148.93,16.7861]
[1727801941805,31.8706,149.05,148.8,6.1914]
[1727801941806,16.7801,148.99,148.8,6.1914]
[1727801941977,6.7149,148.93,148.87,6.7172]
[1727801942175,33.5508,149.03,148.88,1.34296657]
[1727801942478,6.7168,148.88,148.81,16.7991]
[1727801942678,23.3251,148.94,148.81,16.7991]
[1727801942679,36.2345,148.93,148.81,16.7991]
[1727801942873,6.7177,148.86,148.81,16.7991]
[1727801943074,16.2345,148.93,148.73,15.5422]
[1727801943075,16.2345,148.93,148.77,16.8036]
[1727801943274,6.7192,148.83,148.78,6.7212]
[1727801943493,6.7195,148.82,148.79,1.34380148]
[1727801943694,6.7189,148.84,148.78,6.7212]
[1727801943910,16.7885,148.92,148.83,6.719]
[1727801944192,16.7885,148.92,148.73,61.81809732]
[1727801944396,6.7186,148.85,148.76,16.8046]
[1727801944603,6.7176,148.87,148.81,6.7199]
[1727801945080,6.7178,148.86,148.81,6.7199]
[1727801945702,16.2345,148.93,148.72,33.6196]
[1727801945703,16.7912,148.89,148.72,33.6196]
[1727801946014,6.7193,148.83,148.77,6.7216]
[1727801946185,16.7943,148.86,148.78,1.3439198]
[1727801946380,16.7943,148.86,148.76,16.8055]
[1727801947005,16.7905,148.9,148.79,16.8021]
[1727801947383,6.7185,148.85,148.8,8.0637864]
[1727801947610,6.7185,148.85,148.8,6.7203]
[1727801947911,16.7905,148.9,148.8,6.7203]
[1727801948098,6.7177,148.86,148.8,6.7203]
[1727801948287,16.2345,148.93,148.75,50.4176]
[1727801948486,20.0,148.89,148.71,33.6207]
[1727801948686,6.7182,148.85,148.79,6.7207]
[1727801948891,6.7173,148.87,148.81,6.7195]
[1727801949588,6.7177,148.86,148.81,6.7195]
[1727801949998,6.7172,148.88,148.82,1.34354448]
[1727801950287,6.7167,148.89,148.83,6.7189]
[1727801950493,6.7158,148.91,148.85,6.718]
[1727801950789,6.7159,148.9,148.85,6.7181]
[1727801951099,6.7164,148.89,148.84,6.7185]
[1727801951309,6.7169,148.88,148.83,23.5157]
[1727801951522,16.2345,148.93,148.78,23.776884]
[1727801951523,33.5751,148.92,148.78,23.776884]
[1727801951804,6.7177,148.86,148.8,16.8008]
[1727801952011,6.7182,148.85,148.8,23.5211]
[1727801952183,16.7929,148.88,148.77,16.8044]
[1727801952385,6.7199,148.82,148.77,16.8044]
[1727801952590,16.7929,148.88,148.77,16.8044]
[1727801952896,6.7195,148.82,148.78,6.7213]
[1727801953081,6.7204,148.8,148.74,16.8074]
[1727801953412,16.7975,148.84,148.74,16.8074]
[1727801953597,6.7205,148.8,148.75,6.7226]
[1727801954811,6.7199,148.82,148.77,6.7217]
[1727801955216,16.7901,148.9,148.78,18.14650692]
[1727801955412,6.718,148.86,148.81,6.7197]
[1727801955789,6.7182,148.85,148.81,6.7197]
[1727801956104,6.7187,148.84,148.8,16.8003]
[1727801956692,6.7195,148.82,148.77,6.7214]
[1727801956909,6.7177,148.86,148.81,6.7198]
[1727801957116,6.7171,148.88,148.82,8.06257798]
[1727801957412,23.3259,148.94,148.83,6.7189]
[1727801957615,6.7159,148.9,148.86,6.7176]
[1727801957794,6.7159,148.9,148.84,16.7958]
[1727801957992,23.3259,148.94,148.86,6.7177]
[1727801958188,6.7159,148.9,148.86,6.7177]
[1727801958594,6.7172,148.87,148.83,6.719]
[1727801958892,6.5397,148.94,148.85,6.718]
[1727801958893,6.716,148.9,148.85,6.718]
[1727801959099,6.7158,148.91,148.86,6.7176]
[1727801959413,6.7144,148.94,148.89,6.7163]
[1727801959991,15.4518,148.99,148.9,1.34289315]
[1727801960317,15.4518,148.99,148.88,6.7167]
[1727801960506,6.7146,148.93,148.88,6.7167]
[1727801960690,6.7136,148.96,148.9,6.7155]
[1727801961099,6.7137,148.95,148.9,6.7155]
[1727801961309,6.7141,148.94,148.9,6.7155]
[1727801961516,16.7814,148.98,148.93,6.7145]
[1727801961517,6.7126,148.98,148.93,6.7145]
[1727801961720,15.4518,148.99,148.9,16.7891]
[1727801962016,15.4518,148.99,148.89,6.7162]
[1727801962017,6.7141,148.94,148.89,6.7162]
[1727801962212,32.2322,148.99,148.87,40.569784]
[1727801962213,6.715,148.93,148.87,40.569784]
[1727801962424,6.7158,148.91,148.87,16.7929]
[1727801962594,6.716,148.9,148.85,6.7181]
[1727801962919,6.7163,148.89,148.85,6.7181]
[1727801963220,16.7886,148.92,148.81,16.7995]
[1727801963392,16.7905,148.9,148.78,16.803]
[1727801963595,33.5673,148.96,148.76,6.7218]
[1727801963596,6.7201,148.81,148.76,6.7218]
[1727801963807,6.719,148.84,148.78,6.7211]
[1727801964015,6.7186,148.84,148.79,6.7208]
[1727801964306,6.7194,148.83,148.78,6.7212]
[1727801964510,16.7937,148.87,148.76,16.8046]
[1727801964698,6.7194,148.83,148.79,6.7208]
[1727801964907,6.7186,148.84,148.79,6.7208]
[1727801965728,6.7182,148.85,148.8,6.7203]
[1727801966217,6.7182,148.85,148.81,6.7198]
[1727801966218,6.7181,148.85,148.81,6.7198]
[1727801966514,6.7181,148.85,148.75,33.6127]
[1727801966515,6.7173,148.87,148.82,6.7194]
[1727801967021,6.7173,148.87,148.76,23.776884]
[1727801967022,6.7159,148.9,148.85,6.7181]
[1727801967315,6.7159,148.9,148.83,16.7975]
[1727801967316,16.7867,148.93,148.83,16.7975]
[1727801967523,6.7146,148.93,148.88,6.7166]
[1727801967812,6.715,148.92,148.87,23.5094]
[1727801968029,6.1338,148.95,148.87,16.7922]
[1727801968206,6.1338,148.95,148.83,33.5944]
[1727801968207,6.7164,148.89,148.84,6.7186]
[1727801968615,22.9188,148.95,148.83,16.7965]
[1727801968616,6.7172,148.87,148.83,16.7965]
[1727801968799,6.718,148.86,148.8,16.801]
[1727801969622,6.7182,148.85,148.8,16.801]
[1727801969914,6.7188,148.84,148.8,16.801]
[1727801970224,6.7188,148.84,148.8,23.5214]
[1727801970547,6.7188,148.84,148.8,16.801]
[1727801970695,16.7917,148.89,148.8,16.801]
[1727801970901,6.7185,148.85,148.8,23.521]
[1727801971403,6.7186,148.84,148.8,16.801]
[1727801971603,6.719,148.83,148.77,16.8039]
[1727801971922,6.7195,148.82,148.78,6.7213]
[1727801972113,6.7209,148.79,148.74,16.8073]
[1727801972420,6.7214,148.78,148.74,23.5303]
[1727801972606,16.7983,148.83,148.66,61.56659732]
[1727801972798,16.7983,148.83,148.7,16.8112]
[1727801973117,6.7223,148.76,148.71,6.724]
[1727801973422,43.776884,148.83,148.7,16.8112]
[1727801973594,16.8029,148.79,148.7,16.8112]
[1727801973795,20.0,148.83,148.71,1.3445991]
[1727801974023,16.7991,148.82,148.72,16.8092]
[1727801974201,6.7213,148.78,148.73,6.7231]
[1727801974402,6.7213,148.78,148.73,6.7234]
[1727801974610,6.2666,148.84,148.72,16.8092]
[1727801974812,6.7209,148.79,148.74,6.723]
[1727801975526,6.2666,148.84,148.8,6.7204]
[1727801975696,12.9856,148.84,148.78,16.8026]
[1727801976019,6.7191,148.83,148.78,23.5238]
[1727801976211,16.7949,148.86,148.75,16.8064]
[1727801976413,6.7199,148.81,148.76,6.7221]
[1727801976714,16.7949,148.86,148.75,23.529]
[1727801976918,16.7972,148.84,148.75,16.8064]
[1727801977102,6.7205,148.8,148.75,23.529]
[1727801977612,6.7205,148.8,148.76,6.7221]
[1727801978116,6.7205,148.8,148.75,23.529]
[1727801979205,6.7205,148.8,148.76,6.7221]
[1727801979696,69.015,148.88,148.67,79.90579732]
[1727801979896,6.7209,148.79,148.74,6.723]
[1727801980128,6.7209,148.79,148.74,23.5301]
[1727801980822,6.7218,148.77,148.72,6.7236]
[1727801981918,16.8017,148.8,148.71,6.7244]
[1727801982126,16.8017,148.8,148.7,16.8116]
[1727801982310,6.7205,148.8,148.76,6.7221]
[1727801982501,16.7982,148.83,148.74,16.8072]
[1727801982502,6.7215,148.78,148.74,16.8072]
[1727801983325,6.7218,148.77,148.73,6.7234]
[1727801983701,16.8005,148.81,148.74,1.34446402]
[1727801983897,6.7213,148.78,148.74,6.723]
[1727801984310,6.7219,148.77,148.73,6.7235]
[1727801984709,16.8005,148.81,148.73,6.7235]
[1727801984920,6.7214,148.78,148.73,6.7235]
[1727801985110,20.0,148.8,148.71,16.8108]
[1727801985419,6.7223,148.76,148.71,16.8108]
[1727801985625,6.7208,148.8,148.75,6.7223]
[1727801985917,6.721,148.79,148.75,6.7223]
[1727801986126,20.0,148.84,148.71,33.6217]
[1727801986310,6.0618,148.89,148.71,33.6217]
[1727801986311,6.7191,148.83,148.78,6.7212]
[1727801986516,16.7969,148.84,148.75,6.7225]
[1727801986819,48.805,148.88,148.74,16.8073]
[1727801986820,16.7996,148.82,148.74,16.8073]
[1727801987122,6.7214,148.78,148.74,23.5303]
[1727801987626,6.7217,148.77,148.71,50.4322]
[1727801987802,6.7227,148.75,148.71,23.5349]
[1727801988008,6.7218,148.77,148.71,16.8105]
[1727801988211,6.7223,148.76,148.72,6.7239]
[1727801988410,6.7214,148.78,148.71,16.8105]
[1727801988617,6.7214,148.78,148.73,23.532]
[1727801989008,16.8004,148.81,148.7,16.8116]
[1727801989310,16.8004,148.81,148.66,40.63054594]
[1727801989621,6.7221,148.77,148.72,23.5334]
[1727801989803,6.7221,148.77,148.72,16.8095]
[1727801990009,16.8004,148.81,148.72,16.8095]
[1727801990336,6.7218,148.77,148.73,6.7234]
[1727801990627,16.8004,148.81,148.66,40.63054594]
[1727801990628,6.7239,148.73,148.68,6.7254]
[1727801990822,6.7239,148.73,148.66,16.8166]
[1727801991011,16.8033,148.78,148.64,40.1254]
[1727801991012,20.0,148.77,148.7,6.7245]
[1727801991211,6.7218,148.77,148.72,6.724]
[1727801991413,6.3128,148.79,148.71,16.8102]
[1727801991723,6.7204,148.8,148.75,6.7226]
[1727801991923,6.7208,148.79,148.74,23.5305]
[1727801992610,6.7218,148.77,148.72,6.7239]
[1727801993129,6.7222,148.76,148.71,23.5354]
[1727801993625,16.8021,148.8,148.67,16.8147]
[1727801993833,16.8021,148.8,148.71,6.7244]
[1727801994404,16.8021,148.8,148.64,47.12916655]
[1727801994605,6.7219,148.77,148.71,23.5342]
[1727801994829,6.7219,148.77,148.72,6.7239]
[1727801995903,20.0,148.82,148.72,6.7239]
[1727801996135,20.0,148.8,148.64,47.12916655]
[1727801996431,20.0,148.8,148.69,6.7252]
[1727801996605,20.0,148.8,148.68,23.5402]
[1727801996606,6.7239,148.73,148.68,23.5402]
[1727801997005,6.7232,148.74,148.69,6.725]
[1727801997228,15.6921,148.79,148.7,18.15647207]
[1727801997436,15.6921,148.79,148.72,6.724]
[1727801998432,6.7226,148.76,148.72,16.8092]
[1727801998635,15.6921,148.79,148.72,16.8092]
[1727801998810,15.6921,148.79,148.74,16.8071]
[1727801999129,6.6518,148.83,148.75,6.7223]